Workbook

Sheet Student List
C3: STUDENT NAME | D3: EMAIL | E3: HOME PHONE | F3: CELL PHONE | G3: DOB | H3: EMERGENCY CONTACT | I3: EMERGENCY PHONE | J3: PHYSICIAN | K3: PHYSICIAN PHONE
B4: =Students[[#This Row],[STUDENT NAME]] -> Alexander, David | C4: Alexander, David | D4: david@example.com | E4: 1235550121 | F4: 1235550126 | G4: 1993-01-01 | H4: Michelle Alexander | I4: 1235550130 | J4: Shu Ito | K4: 1235550134
B5: =Students[[#This Row],[STUDENT NAME]] -> Kim, Shane | C5: Kim, Shane | D5: shane@example.com | E5: 1235550122 | F5: 1235550127 | G5: 1992-01-01 | H5: Jim Kim | I5: 1235550131 | J5: Daniel Roth | K5: 1235550135
B6: =Students[[#This Row],[STUDENT NAME]] -> Mirchandani, Bharat | C6: Mirchandani, Bharat | D6: bharat@example.com | E6: 1235550124 | F6: 1235550128 | G6: 1991-01-01 | H6: Nitin S. Mirchandani | I6: 1235550132 | J6: John Kane | K6: 1235550136
B7: =Students[[#This Row],[STUDENT NAME]] -> Turner, Richard | C7: Turner, Richard | D7: richard@example.com | E7: 1235550125 | F7: 1235550129 | G7: 1992-01-01 | H7: Olinda Turner | I7: 1235550133 | J7: Terry Earls | K7: 1235550137

Sheet Class Roster
D2: Graphic Design Institute
C3: COURSE | D3: Graphic Arts 101 | E3: START DATE | F3: 2011-06-06
C4: INSTRUCTOR | D4: Hanson, Mark | E4: END DATE | F4: 2011-08-26
C5: STUDENTS ENROLLED | D5: =COUNTA(StudentRoster[STUDENT NAME]) -> 5
C7: STUDENT NAME | D7: EMAIL | E7: HOME PHONE | F7: CELL PHONE
C8: Alexander, David | D8: =IFERROR(VLOOKUP(StudentRoster[[#This Row],[STUDENT NAME]],Students[],3),"") -> david@example.com | E8: =IFERROR(VLOOKUP(StudentRoster[[#This Row],[STUDENT NAME]],Students[],4),"") -> 1235550121 | F8: =IFERROR(VLOOKUP(StudentRoster[[#This Row],[STUDENT NAME]],Students[],5),"") -> 1235550126
C9: Kim, Shane | D9: =IFERROR(VLOOKUP(StudentRoster[[#This Row],[STUDENT NAME]],Students[],3),"") -> shane@example.com | E9: =IFERROR(VLOOKUP(StudentRoster[[#This Row],[STUDENT NAME]],Students[],4),"") -> 1235550122 | F9: =IFERROR(VLOOKUP(StudentRoster[[#This Row],[STUDENT NAME]],Students[],5),"") -> 1235550127
C10: Mirchandani, Bharat | D10: =IFERROR(VLOOKUP(StudentRoster[[#This Row],[STUDENT NAME]],Students[],3),"") -> bharat@example.com | E10: =IFERROR(VLOOKUP(StudentRoster[[#This Row],[STUDENT NAME]],Students[],4),"") -> 1235550124 | F10: =IFERROR(VLOOKUP(StudentRoster[[#This Row],[STUDENT NAME]],Students[],5),"") -> 1235550128
C11: Turner, Richard | D11: =IFERROR(VLOOKUP(StudentRoster[[#This Row],[STUDENT NAME]],Students[],3),"") -> richard@example.com | E11: =IFERROR(VLOOKUP(StudentRoster[[#This Row],[STUDENT NAME]],Students[],4),"") -> 1235550125 | F11: =IFERROR(VLOOKUP(StudentRoster[[#This Row],[STUDENT NAME]],Students[],5),"") -> 1235550129
C12: Kim, Shane | D12: =IFERROR(VLOOKUP(StudentRoster[[#This Row],[STUDENT NAME]],Students[],3),"") -> shane@example.com | E12: =IFERROR(VLOOKUP(StudentRoster[[#This Row],[STUDENT NAME]],Students[],4),"") -> 1235550122 | F12: =IFERROR(VLOOKUP(StudentRoster[[#This Row],[STUDENT NAME]],Students[],5),"") -> 1235550127

Sheet Student Details
C4: STUDENT NAME | D4: Alexander, David
C5: EMAIL | D5: =IFERROR(VLOOKUP(StudentName,Students[],3,FALSE),"") -> david@example.com
C6: HOME PHONE | D6: =IFERROR(VLOOKUP(StudentName,Students[],4,FALSE),"") -> 1235550121
C7: CELL PHONE | D7: =IFERROR(VLOOKUP(StudentName,Students[],5,FALSE),"") -> 1235550126
C8: DOB | D8: =IFERROR(VLOOKUP(StudentName,Students[],6,FALSE),"") -> 1993-01-01
C9: EMERGENCY CONTACT | D9: =IFERROR(VLOOKUP(StudentName,Students[],7,FALSE),"") -> Michelle Alexander
C10: EMERGENCY PHONE | D10: =IFERROR(VLOOKUP(StudentName,Students[],8,FALSE),"") -> 1235550130
C11: PHYSICIAN | D11: =IFERROR(VLOOKUP(StudentName,Students[],9,FALSE),"") -> Shu Ito
C12: PHYSICIAN PHONE | D12: =IFERROR(VLOOKUP(StudentName,Students[],10,FALSE),"") -> 1235550134
